fUSD/lending_fUSD_20241123
["ID","MTS","AMOUNT","RATE_DAILY","PERIOD"]
[343072882,1732326635144,-514.26022548,0.00076712,120]
[343072883,1732326635153,-516.02239319,0.00076712,120]
[343072884,1732326635164,-518.78060094,0.00076712,120]
[343072885,1732326635174,-504.87977837,0.00076712,120]
[343072886,1732326635182,-534.48593922,0.00076712,120]
[343072887,1732326635193,-523.87397722,0.00076712,120]
[343072888,1732326635204,-523.75082448,0.00076712,120]
[343072889,1732326635213,-508.47280651,0.00076712,120]
[343072890,1732326635223,-503.27015733,0.00076712,120]
[343072891,1732326635235,-510.37682787,0.00076712,120]
[343072892,1732326635244,-521.07379228,0.00076712,120]
[343072893,1732326635254,-514.60001085,0.00076712,120]
[343072894,1732326635263,-325.65807333,0.00076712,120]
[343072895,1732326635273,-510.88241384,0.00076712,120]
[343072896,1732326635283,-500.0,0.00076712,120]
[343072897,1732326635293,-500.0,0.00076712,120]
[343072898,1732326635303,-500.0,0.00076712,120]
[343072899,1732326635311,-508.32700764,0.00076712,120]
[343072900,1732326635321,-523.5622282,0.00076712,120]
[343072906,1732326635446,-512.95401939,0.00076712,120]
[343072908,1732326635456,-536.46566953,0.00076712,120]
[343072910,1732326635466,-513.82125852,0.00076712,120]
[343072912,1732326635475,-788.25,0.00076712,120]
[343072914,1732326635484,-788.25,0.00076712,120]
[343072916,1732326635493,-788.25,0.00076712,120]
[343072918,1732326635502,-513.08776097,0.00076712,120]
[343072919,1732326635511,-517.72118893,0.00076712,120]
[343072920,1732326635521,-536.89741771,0.00076712,120]
[343072921,1732326635533,-505.37343035,0.00076712,120]
[343072922,1732326635543,-514.84443313,0.00076712,120]
[343072923,1732326635552,-556.32785692,0.00076712,120]
[343072924,1732326635562,-511.23241424,0.00076712,120]
[343072925,1732326635571,-525.40730762,0.00076712,120]
[343072926,1732326635581,-509.90622576,0.00076712,120]
[343072927,1732326635590,-509.80828625,0.00076712,120]
[343072928,1732326635600,-521.35635588,0.00076712,120]
[343072929,1732326635609,-500.0,0.00076712,120]
[343072930,1732326635618,-500.0,0.00076712,120]
[343072931,1732326635627,-500.0,0.00076712,120]
[343072932,1732326635636,-500.0,0.00076712,120]
[343072933,1732326635646,-509.94889539,0.00076712,120]
[343072934,1732326635655,-500.0,0.00076712,120]
[343072935,1732326635664,-500.0,0.00076712,120]
[343072936,1732326635673,-500.0,0.00076712,120]
[343072937,1732326635682,-518.92640156,0.00076712,120]
[343072938,1732326635691,-506.73261069,0.00076712,120]
[343072939,1732326635700,-500.0,0.00076712,120]
[343072940,1732326635710,-511.46927557,0.00076712,120]
[343072941,1732326635719,-500.0,0.00076712,120]
[343072942,1732326635728,-500.0,0.00076712,120]
[343072943,1732326635737,-500.0,0.00076712,120]
[343072944,1732326635747,-512.79395429,0.00076712,120]
[343072945,1732326635756,-513.10139364,0.00076712,120]
[343072946,1732326635765,-527.21499641,0.00076712,120]
[343072947,1732326635776,-518.33589526,0.00076712,120]
[343072948,1732326635785,-509.38678005,0.00076712,120]
[343072949,1732326635794,-512.33628655,0.00076712,120]
[343072950,1732326635803,-536.16186105,0.00076712,120]
[343072951,1732326635812,-509.09987179,0.00076712,120]
[343072952,1732326635822,-509.57594346,0.00076712,60]
[343072953,1732326635833,-505.91989749,0.00076712,120]
[343072954,1732326635842,-549.13256496,0.00076712,120]
[343072955,1732326635851,-503.32694324,0.00076712,120]
[343072956,1732326635862,-507.07548528,0.00076712,120]
[343072957,1732326635871,-503.70226199,0.00076712,120]
[343072958,1732326635881,-506.90060484,0.00076712,120]
[343072959,1732326635890,-509.11658713,0.00076712,120]
[343072960,1732326635900,-520.15023077,0.00076712,120]
[343072961,1732326635910,-509.38976814,0.00076712,120]
[343072962,1732326635919,-512.02800169,0.00076712,120]
[343072963,1732326635928,-563.11498543,0.00076712,120]
[343072964,1732326635937,-160.27119745,0.00076712,60]
[343072965,1732326635947,-1993.0,0.00076712,120]
[343072966,1732326635957,-557.81442154,0.00076712,120]
[343072967,1732326635966,-1993.0,0.00076712,120]
[343072968,1732326635976,-1993.0,0.00076712,120]
[343072969,1732326635985,-505.52140295,0.00076712,60]
[343072970,1732326635994,-537.51734246,0.00076712,120]
[343072971,1732326636003,-510.59767979,0.00076712,120]
[343072972,1732326636012,-518.56324851,0.00076712,120]
[343072973,1732326636023,-517.65159834,0.00076712,120]
[343072974,1732326636034,-537.71991544,0.00076712,120]
[343072975,1732326636043,-503.5274689,0.00076712,120]
[343072976,1732326636052,-609.53057831,0.00076712,120]
[343072977,1732326636061,-406.20291144,0.00076712,120]
[343072978,1732326636071,-521.30562744,0.00076712,120]
[343072979,1732326636081,-627.87875091,0.00076712,120]
[343072980,1732326636091,-506.53470826,0.00076712,120]
[343072981,1732326636100,-500.0,0.00076712,120]
[343072982,1732326636110,-500.0,0.00076712,120]
[343072983,1732326636119,-359.63260379,0.00076712,120]
[343072984,1732326636128,-539.08686362,0.00076712,120]
[343072985,1732326636138,-504.57862485,0.00076712,120]
[343072986,1732326636147,-506.1697042,0.00076712,120]
[343072987,1732326636157,-500.0,0.00076712,120]
[343072988,1732326636166,-358.93134564,0.00076712,120]
[343072989,1732326636175,-504.17642222,0.00076712,120]
[343072990,1732326636183,-504.94426329,0.00076712,120]
[343072991,1732326636192,-504.86629796,0.00076712,120]
[343072992,1732326636202,-507.48875917,0.00076712,120]
[343072993,1732326636211,-422.73325267,0.00076712,120]
[343072994,1732326636220,-524.57269191,0.00076712,120]
[343072995,1732326636230,-504.07341103,0.00076712,120]
[343072996,1732326636239,-521.82075019,0.00076712,120]
[343072997,1732326636248,-528.45215174,0.00076712,120]
[343072998,1732326636257,-511.07653695,0.00076712,120]
[343072999,1732326636267,-561.81366365,0.00076712,120]
[343073000,1732326636277,-555.77110626,0.00076712,120]
[343073001,1732326636287,-520.2227079,0.00076712,120]
[343073002,1732326636296,-515.84059776,0.00076712,120]
[343073003,1732326636306,-508.20764602,0.00076712,120]
[343073004,1732326636315,-504.17217013,0.00076712,120]
[343073005,1732326636324,-527.54564503,0.00076712,120]
[343073006,1732326636339,-512.19907168,0.00076712,120]
[343073007,1732326636348,-523.51205176,0.00076712,120]
[343073008,1732326636357,-595.77150685,0.00076712,120]
[343073009,1732326636366,-512.96223375,0.00076712,120]
[343073010,1732326636376,-511.25421517,0.00076712,120]
[343073011,1732326636386,-512.94257972,0.00076712,120]
[343073012,1732326636396,-534.91547835,0.00076712,120]
[343073013,1732326636405,-506.30468472,0.00076712,120]
[343073014,1732326636415,-581.28652471,0.00076712,120]
[343073015,1732326636425,-504.19344647,0.00076712,120]
[343073016,1732326636435,-525.97671548,0.00076712,120]
[343073017,1732326636445,-507.16455341,0.00076712,120]
[343073018,1732326636455,-500.0,0.00076712,120]
[343073019,1732326636465,-500.0,0.00076712,120]
[343073020,1732326636475,-558.90841703,0.00076712,120]
[343073021,1732326636485,-408.64023023,0.00076712,120]
[343073022,1732326636499,-500.0,0.00076712,120]
[343073023,1732326636508,-500.0,0.00076712,120]
[343073024,1732326636518,-232.3354755,0.00076712,120]
[343073025,1732326636530,-524.54493212,0.00076712,120]
[343073026,1732326636540,-557.07881044,0.00076712,120]
[343073027,1732326636551,-527.96822125,0.00076712,120]
[343073028,1732326636561,-511.63940497,0.00076712,120]
[343073029,1732326636570,-523.46930171,0.00076712,120]
[343073030,1732326636580,-508.96618614,0.00076712,120]
[343073031,1732326636590,-518.5029707,0.00076712,120]
[343073032,1732326636600,-512.03063151,0.00076712,120]
[343073033,1732326636610,-502.33531809,0.00076712,120]
[343073034,1732326636619,-500.0,0.00076712,120]
[343073035,1732326636629,-525.22414477,0.00076712,120]
[343073036,1732326636638,-506.33241204,0.00076712,120]
[343073037,1732326636648,-500.0,0.00076712,120]
[343073038,1732326636657,-500.0,0.00076712,120]
[343073039,1732326636667,-520.25198791,0.00076712,120]
[343073040,1732326636677,-641.73758373,0.00076712,120]
[343073041,1732326636686,-577.70063573,0.00076712,120]
[343073042,1732326636696,-503.67768936,0.00076712,120]
[343073043,1732326636705,-591.66539361,0.00076712,120]
[343073044,1732326636715,-525.82344663,0.00076712,120]
[343073045,1732326636724,-311.85636117,0.00076712,120]
[343073046,1732326636733,-500.0,0.00076712,120]
[343073047,1732326636742,-500.0,0.00076712,120]
[343073048,1732326636752,-204.62,0.00076712,120]
[343073049,1732326636761,-500.0,0.00076712,120]
[343073050,1732326636770,-504.32696608,0.00076712,120]
[343073051,1732326636782,-500.0,0.00076712,120]
[343073052,1732326636792,-572.29617001,0.00076712,120]
[343073053,1732326636802,-500.0,0.00076712,120]
[343073054,1732326636811,-529.82557187,0.00076712,120]
[343073055,1732326636820,-500.0,0.00076712,120]
[343073056,1732326636829,-528.4975587,0.00076712,120]
[343073057,1732326636842,-504.10388503,0.00076712,120]
[343073058,1732326636852,-500.0,0.00076712,120]
[343073059,1732326636861,-500.0,0.00076712,120]
[343073060,1732326636870,-409.63897794,0.00076712,120]
[343073061,1732326636879,-518.77359287,0.00076712,120]
[343073062,1732326636889,-500.0,0.00076712,120]
[343073063,1732326636899,-500.0,0.00076712,120]
[343073064,1732326636908,-166.15432422,0.00076712,120]
[343073065,1732326636919,-500.0,0.00076712,120]
[343073066,1732326636929,-504.53904913,0.00076712,120]
[343073067,1732326636939,-500.0,0.00076712,120]
[343073068,1732326636948,-504.73585643,0.00076712,120]
[343073069,1732326636958,-500.0,0.00076712,120]
[343073070,1732326636968,-500.0,0.00076712,2]
[343073071,1732326636977,-557.56600319,0.00076712,120]
[343073072,1732326636987,-500.0,0.00076712,2]
[343073073,1732326636997,-500.0,0.00076712,2]
[343073074,1732326637006,-500.0,0.00076712,2]
[343073075,1732326637015,-500.0,0.00076712,120]
[343073076,1732326637026,-581.76475745,0.00076712,120]
[343073077,1732326637035,-500.0,0.00076712,120]
[343073078,1732326637044,-607.80916476,0.00076712,120]
[343073079,1732326637054,-500.0,0.00076712,120]
[343073080,1732326637063,-504.6307155,0.00076712,120]
[343073081,1732326637073,-500.0,0.00076712,120]
[343073082,1732326637083,-580.39843833,0.00076712,120]
[343073083,1732326637092,-500.0,0.00076712,120]
[343073084,1732326637102,-542.1724415,0.00076712,120]
[343073085,1732326637113,-419.28282004,0.00076712,120]
[343073086,1732326637123,-500.0,0.00076712,120]
[343073087,1732326637135,-507.66617026,0.00076712,120]
[343073088,1732326637145,-500.0,0.00076712,120]
[343073089,1732326637155,-521.28560263,0.00076712,120]
[343073090,1732326637165,-500.0,0.00076712,21]
[343073091,1732326637174,-500.0,0.00076712,21]
[343073092,1732326637187,-284.14286791,0.00076712,21]
[343073093,1732326637197,-500.0,0.00076712,120]
[343073094,1732326637207,-641.67047317,0.00076712,120]
[343073095,1732326637216,-1000.0,0.00076712,120]
[343073096,1732326637225,-1000.0,0.00076712,120]
[343073097,1732326637235,-1000.0,0.00076712,120]
[343073098,1732326637244,-1000.0,0.00076712,120]
[343073099,1732326637254,-1000.0,0.00076712,120]
[343073100,1732326637263,-1000.0,0.00076712,120]
[343073101,1732326637272,-500.0,0.00076712,120]
[343073102,1732326637284,-384.22316239,0.00076712,120]
[343073103,1732326637293,-500.0,0.00076712,120]
[343073104,1732326637302,-607.74462302,0.00076712,120]
[343073105,1732326637311,-559.21760442,0.00076712,120]
[343073106,1732326637321,-500.0,0.00076712,120]
[343073107,1732326637332,-500.0,0.00076712,120]
[343073108,1732326637342,-331.75486564,0.00076712,120]
[343073109,1732326637354,-591.62369845,0.00076712,120]
[343073110,1732326637363,-500.0,0.00076712,120]
[343073111,1732326637373,-500.0,0.00076712,120]
[343073112,1732326637383,-521.754751,0.00076712,120]
[343073113,1732326637394,-220.74381516,0.00076712,120]
[343073114,1732326637405,-500.0,0.00076712,120]
[343073115,1732326637414,-579.00012519,0.00076712,120]
[343073116,1732326637424,-500.0,0.00076712,120]
[343073117,1732326637434,-500.0,0.00076712,120]
[343073118,1732326637444,-183.6495145,0.00076712,120]
[343073119,1732326637453,-500.0,0.00076712,120]
[343073120,1732326637463,-1000.0,0.00076712,120]
[343073121,1732326637472,-500.0,0.00076712,120]
[343073122,1732326637482,-1046.21062508,0.00076712,120]
[343073123,1732326637493,-500.0,0.00076712,120]
[343073124,1732326637505,-500.0,0.00076712,120]
[343073125,1732326637514,-500.0,0.00076712,120]
[343073127,1732326637535,-500.0,0.00076712,120]
[343073128,1732326637545,-500.0,0.00076712,120]
[343073129,1732326637555,-549.52013708,0.00076712,120]
[343073130,1732326637565,-500.0,0.00076712,120]
[343073131,1732326637574,-547.72088406,0.00076712,120]
[343073132,1732326637584,-500.0,0.00076712,120]
[343073133,1732326637593,-518.29502327,0.00076712,120]
[343073134,1732326637603,-500.0,0.00076712,120]
[343073135,1732326637613,-500.0,0.00076712,120]
[343073136,1732326637623,-186.38935099,0.00076712,120]
[343073137,1732326637633,-500.0,0.00076712,120]
[343073138,1732326637642,-500.0,0.00076712,120]
[343073139,1732326637652,-500.0,0.00076712,120]
[343073140,1732326637662,-197.24238046,0.00076712,120]
[343073141,1732326637672,-500.0,0.00076712,120]
[343073142,1732326637682,-293.0077252,0.00076712,120]
[343073143,1732326637692,-551.10451775,0.00076712,120]
[343073144,1732326637701,-519.87539532,0.00076712,120]
[343073145,1732326637711,-500.0,0.00076712,120]
[343073146,1732326637720,-500.0,0.00076712,120]
[343073147,1732326637730,-500.0,0.00076712,120]
[343073148,1732326637740,-523.91583037,0.00076712,120]
[343073149,1732326637749,-500.0,0.00076712,120]
[343073150,1732326637759,-504.68257457,0.00076712,120]
[343073151,1732326637769,-500.0,0.00076712,120]
[343073152,1732326637783,-573.2798716,0.00076712,120]
[343073153,1732326637792,-500.0,0.00076712,120]
[343073154,1732326637800,-500.0,0.00076712,120]
[343073155,1732326637810,-500.0,0.00076712,120]
[343073156,1732326637819,-500.0,0.00076712,120]
[343073157,1732326637828,-506.57000633,0.00076712,120]
[343073158,1732326637838,-500.0,0.00076712,120]
[343073159,1732326637848,-500.0,0.00076712,120]
[343073160,1732326637857,-210.74756911,0.00076712,120]
[343073161,1732326637867,-500.0,0.00076712,120]
[343073162,1732326637877,-500.0,0.00076712,120]
[343073163,1732326637886,-500.0,0.00076712,7]
[343073164,1732326637905,-274.95948731,0.00076712,120]
[343073165,1732326637916,-538.26246196,0.00076712,7]
[343073166,1732326637926,-500.0,0.00076712,120]
[343073167,1732326637935,-324.97170589,0.00076712,120]
[343073168,1732326637945,-348.97757895,0.00076712,120]
[343073169,1732326637952,-500.0,0.00076712,120]
[343073170,1732326637962,-554.87552614,0.00076712,120]
[343073171,1732326637971,-554.43940336,0.00076712,120]
[343073172,1732326637981,-500.0,0.00076712,120]
[343073173,1732326637991,-511.19308345,0.00076712,120]
[343073174,1732326638000,-573.71301382,0.00076712,120]
[343073175,1732326638011,-504.67968201,0.00076712,120]
[343073176,1732326638021,-500.0,0.00076712,120]
[343073177,1732326638035,-500.0,0.00076712,120]
[343073178,1732326638045,-499.9800518,0.00076712,120]
[343073179,1732326638055,-328.56209539,0.00076712,120]
[343073180,1732326638065,-520.24158554,0.00076712,120]
[343073181,1732326638075,-500.0,0.00076712,120]
[343073182,1732326638085,-411.00654487,0.00076712,120]
[343073183,1732326638095,-500.0,0.00076712,120]
[343073184,1732326638104,-613.36827359,0.00076712,120]
[343073185,1732326638112,-500.0,0.00076712,120]
[343073186,1732326638121,-473.99291572,0.00076712,120]
[343073192,1732326638287,-500.0,0.00076712,120]
[343073193,1732326638297,-500.0,0.00076712,120]
[343073194,1732326638306,-500.0,0.00076712,120]
[343073195,1732326638315,-500.0,0.00076712,120]
[343073196,1732326638325,-500.0,0.00076712,120]
[343073197,1732326638337,-500.0,0.00076712,120]
[343073198,1732326638346,-500.0,0.00076712,120]
[343073199,1732326638358,-500.0,0.00076712,120]
[343073200,1732326638367,-568.60929095,0.00076712,120]
[343073201,1732326638378,-331.06186755,0.00076712,120]
[343073202,1732326638386,-500.0,0.00076712,120]
[343073203,1732326638395,-500.0,0.00076712,120]
[343073204,1732326638404,-528.03854338,0.00076712,120]
[343073205,1732326638413,-515.84,0.00076712,120]
[343073206,1732326638422,-515.84,0.00076712,120]
[343073207,1732326638431,-515.84,0.00076712,120]
[343073208,1732326638441,-515.84,0.00076712,120]
[343073209,1732326638450,-515.84,0.00076712,120]
[343073210,1732326638459,-515.84,0.00076712,120]
[343073211,1732326638469,-508.2283402,0.00076712,120]
[343073212,1732326638478,-500.0,0.00076712,120]
[343073213,1732326638487,-630.46689994,0.00076712,120]
[343073214,1732326638496,-500.0,0.00076712,120]
[343073215,1732326638506,-500.0,0.00076712,120]
[343073216,1732326638516,-500.0,0.00076712,120]
[343073217,1732326638525,-385.20219132,0.00076712,120]
[343073218,1732326638539,-500.0,0.00076712,120]
[343073219,1732326638553,-500.0,0.00076712,120]
[343073220,1732326638563,-323.63102477,0.00076712,120]
[343073221,1732326638572,-509.36428889,0.00076712,120]
[343073222,1732326638582,-330.21115806,0.00076712,120]
[343073223,1732326638591,-507.60201429,0.00076712,120]
[343073224,1732326638601,-523.71915657,0.00076712,120]
[343073225,1732326638610,-500.0,0.00076712,120]
[343073226,1732326638619,-554.95271809,0.00076712,120]
[343073227,1732326638629,-153.7801915,0.00076712,120]
[343073228,1732326638638,-504.28844644,0.00076712,120]
[343073229,1732326638648,-500.0,0.00076712,120]
[343073230,1732326638657,-500.0,0.00076712,120]
[343073231,1732326638666,-589.47459708,0.00076712,120]
[343073232,1732326638675,-551.0228351,0.00076712,120]
[343073233,1732326638688,-520.16805056,0.00076712,120]
[343073234,1732326638698,-409.1347504,0.00076712,120]
[343073235,1732326638706,-500.0,0.00076712,120]
[343073236,1732326638715,-542.08481283,0.00076712,120]
[343073237,1732326638724,-532.94425483,0.00076712,120]
[343073238,1732326638733,-500.0,0.00076712,120]
[343073239,1732326638742,-500.0,0.00076712,120]
[343073240,1732326638752,-633.45637566,0.00076712,120]
[343073241,1732326638761,-500.0,0.00076712,120]
[343073242,1732326638770,-500.0,0.00076712,120]
[343073243,1732326638782,-500.0,0.00076712,120]
[343073244,1732326638792,-520.87212141,0.00076712,120]
[343073245,1732326638801,-500.0,0.00076712,120]
[343073246,1732326638811,-533.00514292,0.00076712,120]
[343073247,1732326638820,-547.21388154,0.00076712,120]
[343073248,1732326638830,-500.0,0.00076712,120]
[343073249,1732326638838,-500.0,0.00076712,120]
[343073250,1732326638847,-500.0,0.00076712,120]
[343073251,1732326638855,-359.99615326,0.00076712,120]
[343073252,1732326638864,-500.0,0.00076712,120]
[343073253,1732326638874,-500.0,0.00076712,120]
[343073254,1732326638884,-646.18330603,0.00076712,120]
[343073255,1732326638894,-500.0,0.00076712,120]
[343073256,1732326638904,-500.0,0.00076712,120]
[343073257,1732326638913,-500.0,0.00076712,120]
[343073258,1732326638922,-500.0,0.00076712,120]
[343073259,1732326638931,-500.0,0.00076712,120]
[343073260,1732326638940,-500.0,0.00076712,120]
[343073261,1732326638950,-604.73790486,0.00076712,120]
[343073262,1732326638960,-500.0,0.00076712,120]
[343073263,1732326638970,-500.0,0.00076712,120]
[343073264,1732326638979,-622.82939029,0.00076712,120]
[343073265,1732326638989,-536.10290251,0.00076712,120]
[343073266,1732326638998,-500.0,0.00076712,120]
[343073267,1732326639007,-630.94541624,0.00076712,120]
[343073268,1732326639017,-584.16512617,0.00076712,120]
[343073269,1732326639028,-500.0,0.00076712,120]
[343073270,1732326639037,-528.50842736,0.00076712,120]
[343073271,1732326639047,-500.0,0.00076712,120]
[343073272,1732326639056,-524.20010049,0.00076712,120]
[343073273,1732326639065,-518.88253706,0.00076712,120]
[343073274,1732326639075,-500.0,0.00076712,120]
[343073275,1732326639084,-530.36128939,0.00076712,120]
[343073276,1732326639093,-500.0,0.00076712,120]
[343073277,1732326639103,-500.0,0.00076712,120]
[343073278,1732326639112,-500.0,0.00076712,120]
[343073279,1732326639122,-557.82152408,0.00076712,120]
[343073280,1732326639131,-508.19533836,0.00076712,120]
[343073281,1732326639139,-500.0,0.00076712,120]
[343073282,1732326639149,-500.0,0.00076712,120]
[343073283,1732326639158,-303.16647686,0.00076712,120]
[343073284,1732326639167,-500.0,0.00076712,120]
[343073285,1732326639176,-500.0,0.00076712,120]
[343073286,1732326639186,-500.0,0.00076712,120]
[343073287,1732326639195,-500.0,0.00076712,120]
[343073288,1732326639205,-528.83504555,0.00076712,120]
[343073289,1732326639214,-559.30741907,0.00076712,120]
[343073290,1732326639223,-505.67596933,0.00076712,120]
[343073291,1732326639232,-500.0,0.00076712,120]
[343073292,1732326639241,-249.57904162,0.00076712,120]
[343073293,1732326639250,-588.6641511,0.00076712,120]
[343073294,1732326639260,-510.52420424,0.00076712,120]
[343073295,1732326639269,-528.19207383,0.00076712,120]
[343073296,1732326639280,-513.10097534,0.00076712,120]
[343073297,1732326639290,-627.14921456,0.00076712,120]
[343073298,1732326639299,-500.0,0.00076712,120]
[343073299,1732326639308,-574.74025665,0.00076712,120]
[343073300,1732326639317,-519.12369883,0.00076712,120]
[343073301,1732326639325,-500.0,0.00076712,120]
[343073302,1732326639339,-526.28186065,0.00076712,120]
[343073303,1732326639349,-500.0,0.00076712,120]
[343073304,1732326639358,-500.0,0.00076712,120]
[343073305,1732326639367,-546.62984333,0.00076712,120]
[343073306,1732326639378,-151.74147482,0.00076712,120]
[343073307,1732326639388,-500.0,0.00076712,120]
[343073308,1732326639398,-510.12468982,0.00076712,120]
[343073309,1732326639407,-500.0,0.00076712,120]
[343073310,1732326639418,-1999.8,0.00076712,120]
[343073311,1732326639428,-211.1985476,0.00076712,120]
[343073312,1732326639438,-1999.8,0.00076712,120]
[343073313,1732326639448,-1999.8,0.00076712,120]
[343073314,1732326639458,-500.0,0.00076712,120]
[343073315,1732326639467,-509.22684362,0.00076712,120]
[343073316,1732326639477,-512.12298943,0.00076712,120]
[343073317,1732326639487,-221.97848339,0.00076712,120]
[343073318,1732326639497,-529.7871819,0.00076712,120]
[343073319,1732326639507,-520.9897248,0.00076712,120]
[343073320,1732326639516,-511.53124048,0.00076712,120]
[343073321,1732326639526,-542.13000404,0.00076712,120]
[343073322,1732326639537,-530.77369991,0.00076712,120]
[343073323,1732326639547,-505.26263605,0.00076712,120]
[343073324,1732326639557,-507.24849891,0.00076712,120]
[343073325,1732326639567,-522.05625813,0.00076712,120]
[343073326,1732326639576,-500.0,0.00076712,120]
[343073327,1732326639585,-573.27815619,0.00076712,120]
[343073328,1732326639595,-504.72292065,0.00076712,120]
[343073329,1732326639604,-394.70151538,0.00076712,120]
[343073330,1732326639614,-513.66603045,0.00076712,120]
[343073331,1732326639623,-500.0,0.00076712,120]
[343073332,1732326639633,-516.58688975,0.00076712,120]
[343073333,1732326639643,-504.5694792,0.00076712,120]
[343073335,1732326639653,-573.63835032,0.00076712,120]
[343073336,1732326639663,-536.11454036,0.00076712,120]
[343073337,1732326639672,-443.56889493,0.00076712,120]
[343073338,1732326639681,-500.0,0.00076712,120]
[343073339,1732326639691,-536.32841745,0.00076712,120]
[343073340,1732326639701,-500.0,0.00076712,120]
[343073341,1732326639711,-647.1711598,0.00076712,120]
[343073342,1732326639720,-525.33597561,0.00076712,120]
[343073343,1732326639730,-519.91722449,0.00076712,120]
[343073344,1732326639739,-597.15325711,0.00076712,120]
[343073345,1732326639747,-505.35045088,0.00076712,120]
[343073346,1732326639756,-514.18083077,0.00076712,120]
[343073347,1732326639765,-524.63140386,0.00076712,120]
[343073348,1732326639775,-540.72959375,0.00076712,120]
[343073349,1732326639786,-500.0,0.00076712,120]
[343073350,1732326639796,-313.88405135,0.00076712,120]
[343073351,1732326639806,-505.45301233,0.00076712,120]
[343073352,1732326639816,-361.67556233,0.00076712,120]
[343073353,1732326639825,-503.14113894,0.00076712,120]
[343073354,1732326639835,-524.21314232,0.00076712,120]
[343073355,1732326639844,-520.32369754,0.00076712,7]
[343073356,1732326639853,-596.84321528,0.00076712,120]
[343073357,1732326639862,-517.55761987,0.00076712,120]
[343073358,1732326639871,-539.34781087,0.00076712,120]
[343073359,1732326639880,-588.84091167,0.00076712,120]
[343073360,1732326639888,-507.41153687,0.00076712,120]
[343073361,1732326639898,-539.22155743,0.00076712,120]
[343073362,1732326639908,-505.07911891,0.00076712,120]
[343073364,1732326639917,-169.75315227,0.00076712,120]
[343073365,1732326639927,-524.7102324,0.00076712,120]
[343073366,1732326639936,-544.96510888,0.00076712,120]
[343073367,1732326639945,-500.0,0.00076712,120]
[343073368,1732326639955,-272.04500519,0.00076712,120]
[343073369,1732326639964,-505.01231053,0.00076712,120]
[343073370,1732326639973,-514.75589518,0.00076712,120]
[343073371,1732326639983,-503.34980922,0.00076712,120]
[343073372,1732326639994,-555.70494107,0.00076712,120]
[343073373,1732326640003,-602.40646467,0.00076712,120]
[343073374,1732326640012,-522.74472336,0.00076712,120]
[343073375,1732326640042,-59.27992257,0.00076712,120]
[343073376,1732326640051,-519.13723038,0.00076712,120]
[343073377,1732326640060,-504.32977022,0.00076712,120]
[343073378,1732326640073,-584.64110428,0.00076712,120]
[343073379,1732326640083,-513.54947386,0.00076712,120]
[343073380,1732326640092,-541.65985565,0.00076712,120]
[343073381,1732326640102,-500.0,0.00076712,120]
[343073382,1732326640112,-502.82914478,0.00076712,120]
[343073383,1732326640122,-161.0727884,0.00076712,120]
[343073384,1732326640131,-508.41467882,0.00076712,120]
[343073385,1732326640140,-500.0,0.00076712,120]
[343073386,1732326640150,-512.50205225,0.00076712,120]
[343073388,1732326640159,-645.51945725,0.00076712,120]
[343073390,1732326640168,-503.87840231,0.00076712,120]
[343073392,1732326640178,-500.0,0.00076712,120]
[343073394,1732326640186,-500.0,0.00076712,120]
[343073396,1732326640195,-517.83753931,0.00076712,120]
[343073398,1732326640206,-500.0,0.00076712,120]
[343073400,1732326640215,-534.83188265,0.00076712,120]
[343073402,1732326640224,-500.0,0.00076712,120]
[343073404,1732326640233,-534.15688168,0.00076712,120]
[343073406,1732326640243,-638.08791273,0.00076712,120]
[343073408,1732326640252,-509.23344589,0.00076712,120]
[343073410,1732326640262,-208.27524673,0.00076712,2]
[343073412,1732326640271,-500.0,0.00076712,120]
[343073414,1732326640287,-500.0,0.00076712,120]